[Event "FIDE WYCC Girls U14 2023"]
[Site "Montesilvano"]
[Date "2023.11.13"]
[Round "1.23"]
[White "Dukic, Teona"]
[Black "Zhang, Michelle"]
[Result "0-1"]
[ECO "D43"]
[WhiteElo "1343"]
[BlackElo "1833"]
[Annotator "NA"]
[PlyCount "118"]
[EventDate "2023.11.13"]
[EventType "swiss"]
[EventCountry "ITA"]
[SourceTitle "playchess.com"]
[Source "ChessBase"]
[SourceQuality "1"]
[TimeControl "40/5400+30:1800+30"]

1. d4 {[%emt 0:00:02]} d5 {[%emt 0:00:25]} 2. c4 {[%emt 0:00:25]} c6 {[%emt 0:00:24]} 3. Nc3 {[%emt 0:00:44]} Nf6 {[%emt 0:00:40]} 4. Nf3 {[%emt 0:00:23]} e6 {[%emt 0:00:59]} 5. Bg5 {[%emt 0:00:52]} Be7 {[%emt 0:04:32]} 6. cxd5 {[%emt 0:01:26]} exd5 {[%emt 0:00:16]} 7. e3 {[%emt 0:01:07]} O-O {[%emt 0:00:40]} 8. Bd3 {[%emt 0:01:06]} Nbd7 {[%emt 0:01:06]} 9. O-O {[%emt 0:00:25]} Re8 {[%emt 0:00:50]} 10. Qc2 {[%emt 0:00:51]} Nf8 {[%emt 0:01:05]} 11. Ne5 {[%emt 0:04:17]} h6 {[%emt 0:10:14]} 12. Bh4 {[%emt 0:02:17]} Ng4 {[%emt 0:06:39]} 13. Bxe7 {[%emt 0:04:07]} Qxe7 {[%emt 0:00:50]} 14. Nxg4 {[%emt 0:03:06]} Bxg4 {[%emt 0:00:11]} 15. Rab1 {[%emt 0:01:17]} a5 {[%emt 0:01:41]} 16. a3 {[%emt 0:01:17]} Qg5 {[%emt 0:02:37]} 17. Kh1 {[%emt 0:02:37]} Qh4 {[%emt 0:06:16]} 18. h3 {[%emt 0:11:40]} Bh5 {[%emt 0:10:18]} 19. Kh2 {[%emt 0:03:34]} Ne6 {[%emt 0:04:18]} 20. g3 {[%emt 0:03:40]} Qf6 {[%emt 0:04:20]} 21. Be2 {[%emt 0:04:23]} Bxe2 {[%emt 0:12:27]} 22. Nxe2 {[%emt 0:00:18]} Qf3 {[%emt 0:06:03]} 23. Nf4 {[%emt 0:07:23]} Ng5 {[%emt 0:04:44]} 24. b4 {[%emt 0:09:52]} Qe4 {[%emt 0:01:49]} 25. Qxe4 {[%emt 0:01:24]} Nxe4 {[%emt 0:01:00]} 26. Rb2 {[%emt 0:02:05]} Nd6 {[%emt 0:01:41]} 27. Rc1 {[%emt 0:04:34]} Nc4 {[%emt 0:02:08]} 28. Rb3 {[%emt 0:00:48]} axb4 {[%emt 0:00:46]} 29. axb4 {[%emt 0:01:33]} Ra2 {[%emt 0:01:01]} 30. Kg1 {[%emt 0:02:53]} b5 {[%emt 0:02:06]} 31. Rbb1 {[%emt 0:05:27]} Rea8 {[%emt 0:00:49]} 32. Rd1 {[%emt 0:02:57]} Kf8 {[%emt 0:01:57]} 33. Nd3 {[%emt 0:01:17]} Ke7 {[%emt 0:01:42]} 34. Ne5 {[%emt 0:03:12]} R8a6 {[%emt 0:02:19]} 35. Nd3 {[%emt 0:01:50]} Kd6 {[%emt 0:02:07]} 36. Nc5 {[%emt 0:00:34]} R6a3 {[%emt 0:01:34]} 37. Rd3 {[%emt 0:02:23]} Ra1 {[%emt 0:01:40]} 38. Rdd1 {[%emt 0:01:23]} Rxb1 {[%emt 0:01:33]} 39. Rxb1 {[%emt 0:00:09]} Nd2 {[%emt 0:00:55]} 40. Rb2 {[%emt 0:00:00]} Ne4 {[%emt 0:00:00]} 41. Kf1 {[%emt 0:02:00]} Nxc5 {[%emt 0:03:44]} 42. bxc5+ {[%emt 0:00:23]} Kc7 {[%emt 0:01:18]} 43. Ke2 {[%emt 0:01:05]} Kb7 {[%emt 0:02:57]} 44. Kd2 {[%emt 0:01:05]} Ka6 {[%emt 0:00:25]} 45. Kc2 {[%emt 0:01:52]} Ka5 {[%emt 0:01:15]} 46. Kd2 {[%emt 0:01:24]} b4 {[%emt 0:02:10]} 47. Kc2 {[%emt 0:01:12]} Ka4 {[%emt 0:04:22]} 48. Kd2 {[%emt 0:07:21]} f5 {[%emt 0:01:22]} 49. g4 {[%emt 0:03:48]} g6 {[%emt 0:00:45]} 50. gxf5 {[%emt 0:03:14]} gxf5 {[%emt 0:00:09]} 51. h4 {[%emt 0:01:54]} Ra1 {[%emt 0:02:10]} 52. Kc2 {[%emt 0:01:28]} h5 {[%emt 0:02:20]} 53. f3 {[%emt 0:03:20]} Rf1 {[%emt 0:08:39]} 54. Ra2+ {[%emt 0:03:18]} Kb5 {[%emt 0:00:17]} 55. Ra8 {[%emt 0:01:17]} Kc4 {[%emt 0:02:40]} 56. Rb8 {[%emt 0:03:11]} b3+ {[%emt 0:00:58]} 57. Kb2 {[%emt 0:00:22]} Rf2+ {[%emt 0:00:10]} 58. Kb1 {[%emt 0:00:18]} Kc3 {[%emt 0:00:09]} 59. Kc1 {[%emt 0:00:13]} Rf1# {[%emt 0:00:06]} 0-1

[Event "FIDE WYCC Girls U14 2023"]
[Site "Montesilvano"]
[Date "2023.11.13"]
[Round "1.24"]
[White "Sneha Halder"]
[Black "Abou Taam, Fatima"]
[Result "1-0"]
[ECO "A00"]
[WhiteElo "1807"]
[BlackElo "1342"]
[Annotator "NA"]
[PlyCount "61"]
[EventDate "2023.11.13"]
[EventType "swiss"]
[EventCountry "ITA"]
[SourceTitle "playchess.com"]
[Source "ChessBase"]
[SourceQuality "1"]
[TimeControl "40/5400+30:1800+30"]

1. Nc3 {[%emt 0:00:11]} d5 2. d4 {[%emt 0:00:28]} Nf6 {[%emt 0:04:03]} 3. Bf4 c6 4. e3 {[%emt 0:01:17]} Bf5 {[%emt 0:04:29]} 5. Bd3 {[%emt 0:00:10]} Bg6 {[%emt 0:02:28]} 6. Nge2 {[%emt 0:00:40]} e6 {[%emt 0:01:39]} 7. Qd2 {[%emt 0:01:26]} Bb4 {[%emt 0:07:30]} 8. a3 {[%emt 0:00:09]} Ba5 {[%emt 0:00:28]} 9. h4 {[%emt 0:04:32]} Ne4 {[%emt 0:08:05]} 10. Bxe4 {[%emt 0:04:06]} dxe4 {[%emt 0:00:15]} 11. b4 {[%emt 0:00:48]} Bc7 {[%emt 0:02:19]} 12. h5 {[%emt 0:02:00]} Bf5 {[%emt 0:03:00]} 13. Bxc7 {[%emt 0:03:18]} Qxc7 {[%emt 0:02:13]} 14. Ng3 {[%emt 0:00:13]} Nd7 {[%emt 0:09:53]} 15. Ncxe4 {[%emt 0:01:20]} Bxe4 {[%emt 0:03:57]} 16. Nxe4 {[%emt 0:00:35]} Nb6 {[%emt 0:01:24]} 17. Qd3 {[%emt 0:08:10]} O-O-O {[%emt 0:01:41]} 18. c4 {[%emt 0:03:09]} e5 {[%emt 0:02:08]} 19. c5 {[%emt 0:00:15]} Nd5 {[%emt 0:02:09]} 20. Nd6+ {[%emt 0:02:18]} Rxd6 {[%emt 0:02:40]} 21. cxd6 {[%emt 0:00:07]} Qxd6 {[%emt 0:00:16]} 22. Qf5+ {[%emt 0:00:41]} Kd8 {[%emt 0:03:16]} 23. dxe5 {[%emt 0:00:17]} Qe7 {[%emt 0:01:43]} 24. Rd1 {[%emt 0:00:25]} Kc7 {[%emt 0:02:40]} 25. e4 {[%emt 0:00:38]} g6 {[%emt 0:00:58]} 26. exd5 {[%emt 0:01:25]} cxd5 {[%emt 0:01:18]} 27. Qf4 {[%emt 0:00:56]} Qe6 {[%emt 0:16:03]} 28. hxg6 {[%emt 0:02:36]} fxg6 {[%emt 0:07:52]} 29. O-O {[%emt 0:00:23]} g5 {[%emt 0:02:05]} 30. Qd4 {[%emt 0:00:34]} Rf8 {[%emt 0:05:56]} 31. Qc5+ {[%emt 0:00:05]} 1-0

[Event "FIDE WYCC Girls U14 2023"]
[Site "Montesilvano"]
[Date "2023.11.13"]
[Round "1.25"]
[White "Canossa, Elena"]
[Black "Skramstad, Oda Kofoed"]
[Result "0-1"]
[ECO "C45"]
[WhiteElo "1326"]
[BlackElo "1801"]
[Annotator "NA"]
[PlyCount "92"]
[EventDate "2023.11.13"]
[EventType "swiss"]
[EventCountry "ITA"]
[SourceTitle "playchess.com"]
[Source "ChessBase"]
[SourceQuality "1"]
[TimeControl "40/5400+30:1800+30"]

1. e4 {[%emt 0:00:01]} e5 {[%emt 0:00:51]} 2. Nf3 {[%emt 0:00:10]} Nc6 {[%emt 0:00:28]} 3. d4 {[%emt 0:00:34]} exd4 {[%emt 0:02:17]} 4. Nxd4 {[%emt 0:00:22]} Bc5 {[%emt 0:00:59]} 5. Be3 {[%emt 0:00:55]} Qf6 {[%emt 0:00:59]} 6. c3 {[%emt 0:01:08]} Nge7 {[%emt 0:00:38]} 7. Be2 {[%emt 0:08:10]} O-O {[%emt 0:01:11]} 8. O-O {[%emt 0:02:14]} d5 {[%emt 0:01:28]} 9. Nxc6 {[%emt 0:21:59]} Qxc6 {[%emt 0:00:37]} 10. Bxc5 {[%emt 0:02:16]} Qxc5 {[%emt 0:01:16]} 11. exd5 {[%emt 0:03:52]} Nxd5 {[%emt 0:03:08]} 12. b4 {[%emt 0:04:14]} Qd6 {[%emt 0:01:50]} 13. Bf3 {[%emt 0:02:04]} Rd8 {[%emt 0:02:14]} 14. Re1 {[%emt 0:04:08]} Be6 {[%emt 0:01:30]} 15. a4 {[%emt 0:03:49]} c6 {[%emt 0:02:47]} 16. Ra3 {[%emt 0:02:57]} Qf4 {[%emt 0:06:26]} 17. Re4 {[%emt 0:04:51]} Qg5 {[%emt 0:02:05]} 18. h4 {[%emt 0:05:58]} Qf6 {[%emt 0:01:05]} 19. Nd2 {[%emt 0:01:50]} Nxc3 {[%emt 0:02:50]} 20. Rxc3 {[%emt 0:10:17]} Qxc3 {[%emt 0:00:20]} 21. Re2 {[%emt 0:07:40]} Bc4 {[%emt 0:01:04]} 22. Re3 {[%emt 0:06:18]} Qxd2 {[%emt 0:00:32]} 23. Qxd2 {[%emt 0:00:23]} Rxd2 {[%emt 0:00:12]} 24. Rc3 {[%emt 0:01:31]} Bd5 {[%emt 0:00:32]} 25. Bg4 {[%emt 0:00:42]} Rd4 {[%emt 0:00:26]} 26. Be2 {[%emt 0:01:43]} Re8 {[%emt 0:00:26]} 27. Rc2 {[%emt 0:00:50]} Rxb4 {[%emt 0:00:33]} 28. a5 {[%emt 0:01:48]} Rxh4 {[%emt 0:00:21]} 29. f3 {[%emt 0:01:21]} Ra4 {[%emt 0:00:20]} 30. a6 {[%emt 0:00:26]} b5 {[%emt 0:00:12]} 31. g4 {[%emt 0:00:46]} Ra2 {[%emt 0:00:19]} 32. Rxa2 {[%emt 0:00:26]} Bxa2 {[%emt 0:00:07]} 33. Bf1 {[%emt 0:00:22]} b4 {[%emt 0:00:07]} 34. g5 {[%emt 0:00:32]} b3 {[%emt 0:00:08]} 35. Bd3 {[%emt 0:00:25]} b2 {[%emt 0:00:12]} 36. Kg2 {[%emt 0:00:13]} b1=Q {[%emt 0:00:22]} 37. Bxb1 {[%emt 0:00:09]} Bxb1 {[%emt 0:00:06]} 38. Kg3 {[%emt 0:00:14]} c5 {[%emt 0:00:14]} 39. f4 {[%emt 0:00:31]} Bf5 {[%emt 0:00:14]} 40. Kf3 {[%emt 0:00:00]} c4 {[%emt 0:00:00]} 41. Kg3 {[%emt 0:00:47]} c3 {[%emt 0:00:28]} 42. Kf3 {[%emt 0:00:33]} c2 {[%emt 0:00:07]} 43. Kg3 {[%emt 0:04:07]} c1=Q {[%emt 0:00:17]} 44. Kf3 {[%emt 0:00:16]} Re3+ {[%emt 0:00:12]} 45. Kf2 {[%emt 0:00:28]} Qd2+ {[%emt 0:00:07]} 46. Kf1 {[%emt 0:00:12]} Re1# {[%emt 0:00:07]} 0-1

[Event "FIDE WYCC Girls U14 2023"]
[Site "Montesilvano"]
[Date "2023.11.13"]
[Round "1.26"]
[White "Li Chen, Helena Joana"]
[Black "Nordahl, Christine"]
[Result "1-0"]
[ECO "B38"]
[WhiteElo "1799"]
[BlackElo "1316"]
[Annotator "NA"]
[PlyCount "91"]
[EventDate "2023.11.13"]
[EventType "swiss"]
[EventCountry "ITA"]
[SourceTitle "playchess.com"]
[Source "ChessBase"]
[SourceQuality "1"]
[TimeControl "40/5400+30:1800+30"]

1. e4 {[%emt 0:00:02]} c5 {[%emt 0:00:15]} 2. Nf3 {[%emt 0:00:06]} Nc6 {[%emt 0:01:08]} 3. d4 {[%emt 0:00:06]} cxd4 {[%emt 0:03:00]} 4. Nxd4 {[%emt 0:00:13]} g6 {[%emt 0:03:09]} 5. c4 {[%emt 0:00:10]} Bg7 {[%emt 0:03:00]} 6. Be3 {[%emt 0:00:08]} Nf6 {[%emt 0:05:09]} 7. Nc3 {[%emt 0:00:13]} O-O {[%emt 0:03:02]} 8. Be2 {[%emt 0:01:11]} d6 {[%emt 0:05:05]} 9. O-O {[%emt 0:00:29]} Nd7 {[%emt 0:06:16]} 10. h3 {[%emt 0:04:46]} a5 {[%emt 0:04:38]} 11. Qd2 {[%emt 0:08:47]} Re8 {[%emt 0:12:32]} 12. Rad1 {[%emt 0:01:47]} Nf8 {[%emt 0:02:50]} 13. Nd5 {[%emt 0:17:53]} Ne6 {[%emt 0:01:51]} 14. Nxe6 {[%emt 0:01:44]} Bxe6 {[%emt 0:01:08]} 15. Bb6 {[%emt 0:00:10]} Qc8 {[%emt 0:01:39]} 16. Nc7 {[%emt 0:00:31]} Nd4 {[%emt 0:11:43]} 17. Rfe1 {[%emt 0:07:38]} Nxe2+ {[%emt 0:09:32]} 18. Qxe2 {[%emt 0:01:01]} Be5 {[%emt 0:06:44]} 19. Nxa8 {[%emt 0:03:34]} Qxa8 {[%emt 0:00:18]} 20. Bd4 {[%emt 0:01:11]} Rc8 {[%emt 0:00:36]} 21. b3 {[%emt 0:00:17]} Bxd4 {[%emt 0:00:46]} 22. Rxd4 {[%emt 0:00:14]} Qa7 {[%emt 0:00:06]} 23. Rd2 {[%emt 0:00:38]} Qc5 {[%emt 0:00:09]} 24. Qe3 {[%emt 0:02:24]} Qe5 {[%emt 0:01:08]} 25. f4 {[%emt 0:01:19]} Qh5 {[%emt 0:01:14]} 26. e5 {[%emt 0:01:22]} dxe5 {[%emt 0:00:49]} 27. Qxe5 {[%emt 0:00:13]} Qh4 {[%emt 0:00:18]} 28. Red1 {[%emt 0:00:32]} Qf6 {[%emt 0:02:51]} 29. Qxf6 {[%emt 0:00:18]} exf6 {[%emt 0:00:04]} 30. Rd8+ {[%emt 0:00:07]} Rxd8 {[%emt 0:00:10]} 31. Rxd8+ {[%emt 0:00:05]} Kg7 {[%emt 0:00:09]} 32. Rb8 {[%emt 0:02:19]} a4 {[%emt 0:00:32]} 33. Rxb7 {[%emt 0:00:05]} axb3 {[%emt 0:00:06]} 34. axb3 {[%emt 0:00:06]} g5 {[%emt 0:00:09]} 35. Kf2 {[%emt 0:00:13]} gxf4 {[%emt 0:00:22]} 36. Kf3 {[%emt 0:00:04]} Kg6 {[%emt 0:00:33]} 37. Kxf4 {[%emt 0:00:07]} h5 {[%emt 0:00:10]} 38. Rc7 {[%emt 0:00:20]} h4 {[%emt 0:00:14]} 39. b4 {[%emt 0:00:04]} Bf5 {[%emt 0:00:16]} 40. b5 {[%emt 0:00:00]} Bd3 {[%emt 0:00:00]} 41. b6 {[%emt 0:00:30]} Bf1 {[%emt 0:00:22]} 42. b7 {[%emt 0:00:17]} Bxg2 {[%emt 0:00:05]} 43. b8=Q {[%emt 0:00:10]} Bxh3 {[%emt 0:00:09]} 44. Qg8+ {[%emt 0:00:14]} Kh6 {[%emt 0:00:11]} 45. Rxf7 {[%emt 0:00:12]} Bf1 {[%emt 0:00:23]} 46. Rh7# {[%emt 0:00:08]} 1-0

[Event "FIDE WYCC Girls U14 2023"]
[Site "Montesilvano"]
[Date "2023.11.13"]
[Round "1.27"]
[White "Antenreiter, Lena"]
[Black "Montano Vicente, Guadalupe"]
[Result "0-1"]
[ECO "B92"]
[WhiteElo "1309"]
[BlackElo "1794"]
[Annotator "NA"]
[PlyCount "90"]
[EventDate "2023.11.13"]
[EventType "swiss"]
[EventCountry "ITA"]
[SourceTitle "playchess.com"]
[Source "ChessBase"]
[SourceQuality "1"]
[TimeControl "40/5400+30:1800+30"]

1. e4 {[%emt 0:00:01]} c5 {[%emt 0:00:08]} 2. Nf3 {[%emt 0:00:10]} d6 {[%emt 0:00:14]} 3. d4 {[%emt 0:00:05]} cxd4 {[%emt 0:00:05]} 4. Nxd4 {[%emt 0:00:09]} Nf6 {[%emt 0:00:05]} 5. Nc3 {[%emt 0:00:14]} a6 {[%emt 0:00:13]} 6. Be2 {[%emt 0:00:16]} e5 {[%emt 0:00:54]} 7. Nb3 {[%emt 0:00:07]} Be7 {[%emt 0:01:10]} 8. Be3 {[%emt 0:00:09]} Be6 {[%emt 0:00:31]} 9. O-O {[%emt 0:00:16]} O-O {[%emt 0:00:51]} 10. f4 {[%emt 0:00:32]} exf4 {[%emt 0:02:51]} 11. Bxf4 {[%emt 0:00:10]} Nc6 {[%emt 0:00:45]} 12. Kh1 {[%emt 0:01:01]} Ne5 {[%emt 0:03:32]} 13. Qe1 {[%emt 0:01:09]} Qc7 {[%emt 0:06:44]} 14. Rd1 {[%emt 0:04:20]} Rfd8 {[%emt 0:03:56]} 15. Nd4 {[%emt 0:10:55]} Ng6 {[%emt 0:08:18]} 16. Bg3 {[%emt 0:01:34]} Rac8 {[%emt 0:04:01]} 17. Nf5 {[%emt 0:02:07]} Bxf5 {[%emt 0:07:42]} 18. exf5 {[%emt 0:00:58]} Ne5 {[%emt 0:00:09]} 19. Bf4 {[%emt 0:01:36]} Qb6 {[%emt 0:07:21]} 20. Na4 {[%emt 0:07:32]} Qc7 {[%emt 0:04:30]} 21. Nc3 {[%emt 0:00:17]} Kh8 {[%emt 0:03:13]} 22. Qf2 {[%emt 0:11:39]} b5 {[%emt 0:03:34]} 23. a3 {[%emt 0:05:38]} Nc4 {[%emt 0:07:54]} 24. Bxc4 {[%emt 0:03:54]} bxc4 {[%emt 0:04:22]} 25. Rfe1 {[%emt 0:07:04]} Qb7 {[%emt 0:02:49]} 26. Rb1 {[%emt 0:05:13]} d5 {[%emt 0:06:47]} 27. Be5 {[%emt 0:02:50]} Ng4 {[%emt 0:06:56]} 28. Qg3 {[%emt 0:04:13]} Nxe5 {[%emt 0:00:08]} 29. Qxe5 {[%emt 0:00:31]} Bf6 {[%emt 0:00:27]} 30. Qg3 {[%emt 0:01:05]} Qc6 {[%emt 0:01:57]} 31. Ne2 {[%emt 0:07:49]} d4 {[%emt 0:03:29]} 32. Nf4 {[%emt 0:01:59]} Qd6 {[%emt 0:02:03]} 33. Nh5 {[%emt 0:01:32]} Qxg3 {[%emt 0:00:48]} 34. Nxg3 {[%emt 0:00:09]} Rc5 {[%emt 0:00:41]} 35. Re4 {[%emt 0:01:29]} d3 {[%emt 0:02:31]} 36. Ree1 {[%emt 0:02:31]} dxc2 {[%emt 0:02:12]} 37. Rbc1 {[%emt 0:00:46]} Bxb2 {[%emt 0:00:41]} 38. Rxc2 {[%emt 0:00:10]} Bxa3 {[%emt 0:00:20]} 39. h3 {[%emt 0:02:26]} a5 {[%emt 0:00:54]} 40. Re7 {[%emt 0:00:00]} Rf8 {[%emt 0:00:00]} 41. Ra7 {[%emt 0:02:28]} Bb4 {[%emt 0:02:02]} 42. Kh2 {[%emt 0:04:02]} c3 {[%emt 0:00:11]} 43. Ne4 {[%emt 0:02:54]} Rxf5 {[%emt 0:01:11]} 44. Rc7 {[%emt 0:00:26]} h6 {[%emt 0:01:28]} 45. Nxc3 {[%emt 0:00:19]} Bd6+ {[%emt 0:00:10]} 0-1

[Event "FIDE WYCC Girls U14 2023"]
[Site "Montesilvano"]
[Date "2023.11.13"]
[Round "1.28"]
[White "Lorenz, Veronika"]
[Black "Cutiyog, Jirah Floravie"]
[Result "0-1"]
[ECO "B31"]
[WhiteElo "1791"]
[BlackElo "1305"]
[Annotator "NA"]
[PlyCount "146"]
[EventDate "2023.11.13"]
[EventType "swiss"]
[EventCountry "ITA"]
[SourceTitle "playchess.com"]
[Source "ChessBase"]
[SourceQuality "1"]
[TimeControl "40/5400+30:1800+30"]

1. e4 {[%emt 0:00:01]} c5 {[%emt 0:00:06]} 2. Nf3 {[%emt 0:00:03]} Nc6 {[%emt 0:00:07]} 3. Bb5 {[%emt 0:00:03]} g6 {[%emt 0:00:44]} 4. Bxc6 {[%emt 0:00:06]} bxc6 {[%emt 0:00:11]} 5. d3 {[%emt 0:00:51]} Bg7 {[%emt 0:00:14]} 6. e5 {[%emt 0:00:20]} d6 {[%emt 0:01:07]} 7. Qe2 {[%emt 0:01:29]} Bg4 {[%emt 0:02:17]} 8. exd6 {[%emt 0:11:01]} Bxf3 {[%emt 0:01:30]} 9. Qxf3 {[%emt 0:00:09]} Qxd6 {[%emt 0:00:23]} 10. O-O {[%emt 0:01:02]} Nf6 {[%emt 0:00:58]} 11. Nd2 {[%emt 0:01:08]} Qd5 {[%emt 0:01:23]} 12. Qe2 {[%emt 0:02:28]} e6 {[%emt 0:02:33]} 13. Nc4 {[%emt 0:03:39]} O-O {[%emt 0:01:39]} 14. Bf4 {[%emt 0:05:58]} Rfd8 {[%emt 0:01:55]} 15. Rfe1 {[%emt 0:06:45]} Qh5 {[%emt 0:05:25]} 16. Qxh5 {[%emt 0:09:04]} Nxh5 {[%emt 0:00:14]} 17. Be5 {[%emt 0:00:17]} Rd5 {[%emt 0:05:16]} 18. Bxg7 {[%emt 0:03:01]} Kxg7 {[%emt 0:01:32]} 19. Re5 {[%emt 0:01:18]} Nf6 {[%emt 0:01:59]} 20. Rae1 {[%emt 0:01:49]} Nd7 {[%emt 0:01:23]} 21. R5e3 {[%emt 0:01:19]} Rc8 {[%emt 0:18:48]} 22. Na5 {[%emt 0:03:27]} Rd4 {[%emt 0:05:18]} 23. Re4 {[%emt 0:17:09]} Nf6 {[%emt 0:03:05]} 24. Re5 {[%emt 0:02:41]} Nd7 {[%emt 0:01:59]} 25. R5e4 {[%emt 0:01:34]} Nf6 {[%emt 0:00:23]} 26. Rxd4 {[%emt 0:00:06]} cxd4 {[%emt 0:00:07]} 27. b4 {[%emt 0:06:12]} Nd5 {[%emt 0:02:02]} 28. a3 {[%emt 0:01:07]} c5 {[%emt 0:00:31]} 29. bxc5 {[%emt 0:01:44]} Rxc5 {[%emt 0:00:09]} 30. Nc4 {[%emt 0:00:14]} Rb5 {[%emt 0:08:04]} 31. g3 {[%emt 0:01:23]} Nb6 {[%emt 0:00:33]} 32. Nxb6 {[%emt 0:03:35]} axb6 {[%emt 0:00:17]} 33. Re4 {[%emt 0:02:52]} e5 {[%emt 0:01:36]} 34. a4 {[%emt 0:01:58]} Rc5 {[%emt 0:03:43]} 35. Kf1 {[%emt 0:01:25]} f6 {[%emt 0:04:17]} 36. Re2 {[%emt 0:04:37]} Kf7 {[%emt 0:01:28]} 37. Ke1 {[%emt 0:02:10]} Ra5 {[%emt 0:00:21]} 38. f4 {[%emt 0:00:18]} exf4 {[%emt 0:03:46]} 39. gxf4 {[%emt 0:00:09]} Rxa4 {[%emt 0:00:20]} 40. Kd2 {[%emt 0:00:00]} Rb4 {[%emt 0:00:00]} 41. Re4 {[%emt 0:03:15]} h6 {[%emt 0:02:42]} 42. Kc1 {[%emt 0:00:58]} Ra4 {[%emt 0:01:46]} 43. Kb2 {[%emt 0:00:27]} f5 {[%emt 0:01:06]} 44. Re5 {[%emt 0:00:15]} Ra5 {[%emt 0:00:42]} 45. Re2 {[%emt 0:02:54]} Rb5+ {[%emt 0:00:44]} 46. Kc1 {[%emt 0:01:33]} g5 {[%emt 0:00:42]} 47. Kd2 {[%emt 0:00:58]} Kg6 {[%emt 0:04:05]} 48. Re6+ {[%emt 0:09:50]} Kh5 {[%emt 0:00:30]} 49. Rd6 {[%emt 0:01:09]} Rb4 {[%emt 0:00:19]} 50. Ke2 {[%emt 0:01:08]} Kg4 {[%emt 0:00:27]} 51. Rxh6 {[%emt 0:01:01]} Kxf4 {[%emt 0:00:07]} 52. Rd6 {[%emt 0:04:41]} Ke5 {[%emt 0:05:30]} 53. Rg6 {[%emt 0:01:48]} g4 {[%emt 0:01:36]} 54. Rg8 {[%emt 0:02:05]} Rb2 {[%emt 0:00:26]} 55. Kd2 {[%emt 0:00:45]} Kf4 {[%emt 0:00:12]} 56. Rf8 {[%emt 0:00:14]} b5 {[%emt 0:01:08]} 57. Rd8 {[%emt 0:04:40]} Rb4 {[%emt 0:02:02]} 58. Rf8 {[%emt 0:00:02]} Ra4 {[%emt 0:00:56]} 59. Rb8 {[%emt 0:02:32]} b4 {[%emt 0:00:43]} 60. Rd8 {[%emt 0:00:11]} b3 {[%emt 0:01:37]} 61. cxb3 {[%emt 0:00:59]} Ra2+ {[%emt 0:00:06]} 62. Ke1 {[%emt 0:00:57]} Ke3 {[%emt 0:00:04]} 63. Kf1 {[%emt 0:01:10]} Rxh2 {[%emt 0:00:34]} 64. Rg8 {[%emt 0:01:18]} Kxd3 {[%emt 0:00:12]} 65. b4 {[%emt 0:00:30]} Rb2 {[%emt 0:00:33]} 66. Rg5 {[%emt 0:00:10]} Ke4 {[%emt 0:00:08]} 67. Rg8 {[%emt 0:00:28]} Kf3 {[%emt 0:00:11]} 68. Ke1 {[%emt 0:00:46]} g3 {[%emt 0:00:10]} 69. Kd1 {[%emt 0:00:13]} f4 {[%emt 0:00:44]} 70. b5 {[%emt 0:00:41]} Rxb5 {[%emt 0:00:24]} 71. Ke1 {[%emt 0:00:12]} Rb2 {[%emt 0:00:16]} 72. Kd1 {[%emt 0:00:16]} g2 {[%emt 0:00:10]} 73. Kc1 {[%emt 0:00:05]} Rf2 {[%emt 0:00:08]} 0-1

[Event "FIDE WYCC Girls U14 2023"]
[Site "Montesilvano"]
[Date "2023.11.13"]
[Round "1.29"]
[White "Hong, Jueun"]
[Black "Avetisyan, Ani"]
[Result "1/2-1/2"]
[ECO "B13"]
[WhiteElo "1299"]
[BlackElo "1770"]
[Annotator "NA"]
[PlyCount "139"]
[EventDate "2023.11.13"]
[EventType "swiss"]
[EventCountry "ITA"]
[SourceTitle "playchess.com"]
[Source "ChessBase"]
[SourceQuality "1"]
[TimeControl "40/5400+30:1800+30"]

1. e4 {[%emt 0:00:04]} c6 {[%emt 0:00:09]} 2. d4 {[%emt 0:00:04]} d5 {[%emt 0:00:04]} 3. exd5 {[%emt 0:00:10]} cxd5 {[%emt 0:00:07]} 4. Bd3 {[%emt 0:00:30]} Nf6 {[%emt 0:00:37]} 5. h3 {[%emt 0:00:20]} Nc6 {[%emt 0:02:24]} 6. c3 {[%emt 0:00:33]} g6 {[%emt 0:01:39]} 7. Nf3 {[%emt 0:01:28]} Bg7 {[%emt 0:00:30]} 8. O-O {[%emt 0:01:29]} O-O {[%emt 0:03:16]} 9. Bf4 {[%emt 0:00:53]} Bf5 {[%emt 0:03:16]} 10. Qe2 {[%emt 0:03:00]} Bxd3 {[%emt 0:03:06]} 11. Qxd3 {[%emt 0:00:12]} Rc8 {[%emt 0:00:52]} 12. Nbd2 {[%emt 0:01:15]} Qb6 {[%emt 0:12:09]} 13. Rab1 {[%emt 0:07:12]} Rfd8 {[%emt 0:02:10]} 14. Rfe1 {[%emt 0:03:03]} a6 {[%emt 0:09:33]} 15. Ne5 {[%emt 0:02:31]} Nxe5 {[%emt 0:04:04]} 16. Bxe5 {[%emt 0:02:19]} Qc6 {[%emt 0:02:11]} 17. Bf4 {[%emt 0:16:02]} Bf8 {[%emt 0:10:14]} 18. Nf3 {[%emt 0:11:58]} Ne4 {[%emt 0:02:47]} 19. Ne5 {[%emt 0:05:13]} Qf6 {[%emt 0:05:04]} 20. f3 {[%emt 0:07:39]} Nd6 {[%emt 0:08:48]} 21. Qd2 {[%emt 0:03:23]} Nc4 {[%emt 0:03:53]} 22. Nxc4 {[%emt 0:04:48]} Rxc4 {[%emt 0:01:42]} 23. Bg5 {[%emt 0:01:35]} Qf5 {[%emt 0:04:13]} 24. Qe3 {[%emt 0:06:28]} f6 {[%emt 0:05:46]} 25. Bf4 {[%emt 0:04:31]} e5 {[%emt 0:01:07]} 26. Bh2 {[%emt 0:03:06]} Rdc8 {[%emt 0:09:56]} 27. Kh1 {[%emt 0:03:10]} exd4 {[%emt 0:00:21]} 28. cxd4 {[%emt 0:00:01]} Kh8 {[%emt 0:02:59]} 29. Bg1 {[%emt 0:04:17]} Rc2 {[%emt 0:00:43]} 30. Rec1 {[%emt 0:01:12]} Bd6 {[%emt 0:01:00]} 31. g4 {[%emt 0:02:14]} Qf4 {[%emt 0:00:34]} 32. Qxf4 Bxf4 33. Rf1 {[%emt 0:03:09]} Re2 {[%emt 0:00:11]} 34. Rfe1 {[%emt 0:00:58]} Rcc2 {[%emt 0:00:12]} 35. Rxe2 {[%emt 0:00:56]} Rxe2 {[%emt 0:00:02]} 36. a3 {[%emt 0:00:45]} b5 {[%emt 0:01:08]} 37. b4 {[%emt 0:01:16]} Kg7 {[%emt 0:00:10]} 38. Rb3 {[%emt 0:00:42]} Re1 {[%emt 0:01:52]} 39. Kg2 {[%emt 0:00:33]} Re2+ {[%emt 0:00:31]} 40. Kf1 {[%emt 0:00:00]} Rc2 {[%emt 0:00:00]} 41. Ke1 {[%emt 0:05:32]} Rc1+ {[%emt 0:08:00]} 42. Kf2 {[%emt 0:00:32]} g5 {[%emt 0:02:26]} 43. Kg2 {[%emt 0:04:29]} Kf7 {[%emt 0:02:35]} 44. Kf2 {[%emt 0:06:08]} Ke6 {[%emt 0:02:07]} 45. Kg2 {[%emt 0:00:58]} Rc2+ {[%emt 0:02:02]} 46. Bf2 {[%emt 0:04:41]} Kd6 {[%emt 0:02:18]} 47. Kg1 {[%emt 0:02:18]} Bd2 {[%emt 0:04:25]} 48. Rd3 {[%emt 0:02:28]} Bc3 {[%emt 0:03:08]} 49. Be3 {[%emt 0:03:52]} Bb2 {[%emt 0:02:08]} 50. Bd2 {[%emt 0:00:52]} Rc4 {[%emt 0:00:31]} 51. Be3 {[%emt 0:01:17]} Rc2 {[%emt 0:03:47]} 52. Bd2 {[%emt 0:00:44]} Ba1 {[%emt 0:01:10]} 53. Kf1 {[%emt 0:01:26]} Rc4 {[%emt 0:02:07]} 54. Be3 {[%emt 0:00:39]} Rc2 {[%emt 0:00:40]} 55. Kg1 {[%emt 0:01:14]} Re2 {[%emt 0:00:35]} 56. Kh1 {[%emt 0:00:47]} Rc2 {[%emt 0:00:37]} 57. Kg1 {[%emt 0:00:10]} Re2 {[%emt 0:00:24]} 58. Kh1 {[%emt 0:00:03]} Ra2 {[%emt 0:00:25]} 59. Bc1 {[%emt 0:00:38]} Bxd4 {[%emt 0:00:43]} 60. Rxd4 {[%emt 0:00:20]} Ke5 {[%emt 0:00:09]} 61. Rd3 {[%emt 0:00:42]} d4 {[%emt 0:00:10]} 62. Kg1 {[%emt 0:00:29]} Ra1 {[%emt 0:00:13]} 63. Rd1 {[%emt 0:00:20]} Kd5 {[%emt 0:00:16]} 64. Kf1 {[%emt 0:00:14]} Kc4 {[%emt 0:00:20]} 65. Ke2 {[%emt 0:00:45]} d3+ {[%emt 0:00:42]} 66. Ke3 {[%emt 0:00:39]} Rb1 {[%emt 0:00:31]} 67. Kd2 {[%emt 0:00:44]} Ra1 {[%emt 0:00:18]} 68. Ke3 {[%emt 0:00:30]} Rb1 {[%emt 0:00:15]} 69. Kd2 {[%emt 0:00:19]} Ra1 {[%emt 0:00:16]} 70. Ke3 {[%emt 0:00:06]} 1/2-1/2